Cogmind - Beta 13 @@@ ROGUE MODE // 2024.07.30 @ 20:36:41 Player: whimsical Result: Destroyed by S-10 Pest with Light Assault Rifle Performance ------------- Evolutions (0) 0 Regions Visited (1) 200 Robots Destroyed (10) 50 Value Destroyed (250) 250 Prototype IDs (0) 0 Alien Tech Used (0) 0 Bonus (0) 0 TOTAL SCORE: 500 Bonus ------- None Cogmind --------- Core Integrity 0/250 Matter 290/300 Energy 54/100 System Corruption 0% Temperature Cool (0) Movement Core (50) Location -10/Materials Parts ------- > --- POWER (1) -------- (None) > --- PROPULSION (2) --- (None) > --- UTILITY (2) ------ (None) > --- WEAPON (2) ------- (None) > --- INVENTORY (5) ---- Ion Engine Light Ion Engine Small Laser Particle Gun Peak State ------------ > --- POWER ------------ Light Ion Engine > --- PROPULSION ------- Wheel Compact Wheel > --- UTILITY ---------- Targeting Computer > --- WEAPON ----------- Small Laser Particle Gun > --- INVENTORY -------- Light Ion Engine [Rating: 7] Favorites ----------- Power Light Ion Engine Engine Light Ion Engine Propulsion Compact Wheel Wheel Compact Wheel Utility Targeting Computer Processor Targeting Computer Weapon EM Pulse Gun Energy Gun EM Pulse Gun Build | -11 -10 ------- Run | Yrd Mat Slots Evolved . | . . Power . | . . Propulsion . | . . Utility . | . . Weapon . | . . Parts Attached 10 | 5 5 Power 1 | 1 . Engine 1 | 1 . Core . | . . Reactor . | . . Propulsion 2 | 2 . Treads . | . . Leg . | . . Wheel 2 | 2 . Hover . | . . Flight . | . . Utility 1 | . 1 Device . | . . Storage . | . . Processor 1 | . 1 Hackware . | . . Protection . | . . Artifact . | . . Weapon 6 | 2 4 Energy Gun 6 | 2 4 Energy Cannon . | . . Ballistic Gun . | . . Ballistic Cannon . | . . Launcher . | . . Special Weapon . | . . Impact Weapon . | . . Slashing Weapon . | . . Piercing Weapon . | . . Special Melee Weapon . | . . Unidentified Prototypes . | . . Parts Lost 8 | . 8 Power 1 | . 1 Propulsion 2 | . 2 Utility 1 | . 1 Weapon 4 | . 4 Highest Loss Streak 6 | . 6 To Critical Strikes . | . . Average Slot Usage (%) 57 | . 57 Engine 11 | . 11 Wheel 22 | . 22 Energy Gun 24 | . 24 Naked Turns 3 | . 3 Heaviest Build 7 | 7 7 Greatest Support 26 | 26 26 Greatest Overweight (x) . | . . Average Overweight (x) . | . . Largest Inventory Capacity 5 | 5 5 Average Capacity 5 | 5 5 Most Carried 4 | 4 3 Average Carried 1 | 1 1 Final Capacity 5 | 5 5 Final Carried 4 | 1 4 Class Distribution -------------------- 100% | Mutant Dominant Class ---------------- Mutant | -10/Materials Resources | -11 -10 ----------- Run | Yrd Mat Matter Collected 300 | 239 61 Remotely . | . . Salvage Created 306 | . 306 Parts 27 | . 27 Haulers Intercepted . | . . Recyclers Shooed . | . . Parts Field Recycled . | . . Retrieved Matter . | . . Parts Self-Destructed . | . . Prevented . | . . Kills | -11 -10 ------- Run | Yrd Mat Combat Hostiles Destroyed 7 | . 7 Guns 6 | . 6 AOE 1 | . 1 Classes Destroyed 5 | . 5 Builder 1 | . 1 Operator 1 | . 1 Watcher 1 | . 1 Swarmer 2 | . 2 Grunt 5 | . 5 Best Kill Streak 5 | . 5 Combat Bots Only 4 | . 4 Max Kills in Single Turn 2 | . 2 Gunslinging . | . . Exploded 1 | . 1 Melee . | . . Uniques/NPCs Destroyed . | . . Combat | -11 -10 -------- Run | Yrd Mat Hostile Shots Fired 87 | . 87 Missed 27 | . 27 Damage Taken 615 | . 615 Core 250 | . 250 Absorbed by Shields . | . . Core Remaining (%) 100 | 100 . Volleys Fired 32 | . 32 Largest 2 | . 2 Hottest 105 | . 105 Shots Fired 54 | . 54 Gun 54 | . 54 Cannon . | . . Launcher . | . . Special . | . . Kinetic . | . . Thermal 28 | . 28 Explosive . | . . Electromagnetic 26 | . 26 Robot Hit Streak 5 | . 5 Robot Miss Streak 4 | . 4 Penetration Max . | . . Secondary Targets 2 | . 2 Max Gunslinging Chain 1 | . 1 Shots Hit Robots 36 | . 36 Core Hits 18 | . 18 Critical Kills . | . . Critical Parts Destroyed . | . . Critical Strikes 2 | . 2 Burn 1 | . 1 Corrupt 1 | . 1 Melee Attacks . | . . Impact . | . . Slashing . | . . Piercing . | . . Sneak Attacks . | . . Combat Hostiles . | . . Follow-up Attacks . | . . Damage Inflicted 696 | . 696 Guns 536 | . 536 Cannons . | . . Explosions 160 | . 160 Melee . | . . Ramming . | . . Kinetic . | . . Thermal 414 | . 414 Explosive . | . . Electromagnetic 282 | . 282 Impact . | . . Slashing . | . . Piercing . | . . Highest Corruption . | . . Average Corruption . | . . Corruption Purged . | . . Corruption Blocked . | . . Overload Shots . | . . Overflow Damage 15 | . 15 Projectiles . | . . Explosions 15 | . 15 Melee . | . . Knockbacks . | . . Impact . | . . Kinetic . | . . Secondary . | . . Self-Inflicted Damage . | . . Shots . | . . Rammed . | . . Targets Rammed . | . . Kicked . | . . Crushed . | . . Highest Temperature 451 | . 451 Average Temperature 180 | . 180 Received Heat Transfer 231 | . 231 Effects 7 | . 7 Shutdowns 2 | . 2 Interference 1 | . 1 Matter Decay 1 | . 1 Short Circuit 1 | . 1 Damage (minor) 2 | . 2 Siege Activations . | . . Robots Corrupted . | . . Combat Hostiles . | . . Parts Fried 1 | . 1 Impact Corruptions . | . . Robots Melted . | . . Combat Hostiles . | . . Parts Melted 1 | . 1 Heat Transferred 954 | . 954 Parts Sabotaged . | . . Parts Stolen . | . . Parts Stripped . | . . Power Chain Reactions 2 | . 2 Alert | -11 -10 ------- Run | Yrd Mat Peak Influence 182 | . 182 Initial . | . . Average 73 | . 96 Maximum Alert Level . | . . Low Security (%) 100 | 100 100 Level 1 . | . . Level 2 . | . . Level 3 . | . . Level 4 . | . . Level 5 . | . . High Security . | . . Max Security . | . . Squads Dispatched 3 | . 3 Investigation . | . . Extermination . | . . Reinforcement 3 | . 3 Assault . | . . Garrison . | . . Intercept . | . . Searches Triggered . | . . Construction Impeded . | . . Haulers Reinforced . | . . Active Scanning Responses . | . . Cargo Convoy Interrupts . | . . Stealth | -11 -10 --------- Run | Yrd Mat Distress Signals 1 | . 1 Communications Jammed . | . . Distress Signals . | . . Times Spotted 14 | . 14 Peak Tracking Total 5 | . 5 Tactical Retreats 2 | . 2 Traps | -11 -10 ------- Run | Yrd Mat Traps Triggered . | . . Indirectly . | . . Trap Hack Attempts . | . . Triggered . | . . Disarmed . | . . Reprogrammed . | . . Reused . | . . Traps Extracted . | . . Installed . | . . Triggered . | . . Machines | -11 -10 ---------- Run | Yrd Mat Machines Disabled 1 | . 1 Max in Single Turn 1 | . 1 Machines Repaired . | . . Machines Dismantled . | . . Machines Sabotaged . | . . Overloaded Fab Kills . | . . Hacking | -11 -10 --------- Run | Yrd Mat Machines Accessed . | . . Terminals . | . . Fabricators . | . . Repair Stations . | . . Recycling Units . | . . Scanalyzers . | . . Garrison Access . | . . Total Hacks . | . . Successful . | . . Failed . | . . Catastrophic . | . . Database Lockouts . | . . Manual . | . . Terminals . | . . Fabricators . | . . Repair Stations . | . . Recycling Units . | . . Scanalyzers . | . . Garrison Access . | . . Terminal Hacks . | . . Fabricator Hacks . | . . Repair Station Hacks . | . . Recycling Unit Hacks . | . . Scanalyzer . | . . Garrison Access Hacks . | . . Unauthorized Hacks . | . . Terminals . | . . Fabricators . | . . Repair Stations . | . . Recycling Units . | . . Scanalyzers . | . . Garrison Access . | . . Data Cores Recovered . | . . Used . | . . Hacking Detections . | . . Full Trace Events . | . . Feedback Events . | . . Feedback Blocked . | . . Robot Schematics Acquired . | . . Robots Built . | . . Authchips . | . . Time . | . . Total Robot Build Rating . | . . Part Schematics Acquired . | . . Parts Built . | . . Authchips . | . . Time . | . . Total Part Build Rating . | . . Parts Repaired . | . . Time . | . . Parts Recycled . | . . Recycled Matter . | . . Retrieved Matter . | . . Retrieved Components . | . . Parts Scanalyzed . | . . Part Schematics Acquired . | . . Parts Damaged . | . . Bothacking | -11 -10 ------------ Run | Yrd Mat Used RIF Installer . | . . Robots Hacked . | . . Non-combat . | . . Combat . | . . Robot Hacks Applied . | . . Relay Couplers Released . | . . Fabnet Peak Effective % . | . . Robots Rewired . | . . Allies Hacked . | . . Hacks Repelled . | . . Allies | -11 -10 -------- Run | Yrd Mat Total Allies . | . . Largest Group . | . . Highest-Rated Group . | . . Highest-Rated Ally . | . . Total Orders . | . . Ally Attacks . | . . Total Damage . | . . Kills . | . . Allies Corrupted . | . . Allies Melted . | . . Intel | -11 -10 ------- Run | Yrd Mat Robot Analysis Total . | . . Derelict Logs Recovered . | . . Drone Launches . | . . Drone Recoveries . | . . Exploration | -11 -10 ------------- Run | Yrd Mat Turns Passed 182 | 43 139 Spaces Moved 95 | 41 54 Core 28 | 11 17 Treads . | . . Legs . | . . Wheels 67 | 30 37 Hover . | . . Flight . | . . Fastest Speed 50 | 50 50 Average Speed 78 | 79 77 Slowest Speed 90 | 90 90 Overloaded Moves . | . . Propulsion Burnouts . | . . Robots Hopped . | . . Cave-ins Triggered . | . . Exploration Rate (%) 13 | 3 24 Regions Visited 1 Branch Regions . Pre-discovered Areas . | . . Known Exits Taken . | . . Unknown Exits Taken 1 | 1 . Scrap Searched . | . . Spaces Dug . | . . Terrain Destroyed 5 | . 5 Melee . | . . Projectile . | . . AOE 5 | . 5 Terrain Rammed . | . . Walls Destroyed . | . . Machines Disabled . | . . Actions | -11 -10 --------- Run | Yrd Mat Total 148 | 51 97 Wait . | . . Move 94 | 40 54 Hop . | . . Pick Up 12 | 6 6 Fast Attach . | . . Attach 8 | 5 3 Detach . | . . Swap 2 | . 2 Drop . | . . Fire 32 | . 32 Melee . | . . Ram . | . . Kick . | . . Crush . | . . Escape Stasis . | . . Rewire . | . . Trap . | . . Miscellaneous . | . . Route ------- -11/Scrapyard -10/Materials (discovered 2 exits: [*Mat] / [*Min]) History --------- Turn | Location | Event 6 | -11/Scrapyard | Discovered new exit (range 15) 44 | -11/Scrapyard | Entered Materials 131 | -10/Materials | Discovered new exit (range 14) 137 | -10/Materials | Discovered new exit (range 15) 158 | -10/Materials | Core integrity fell below 50% 171 | -10/Materials | Core integrity fell below 20% 183 | -10/Materials | Destroyed by S-10 Pest with Light Assault Rifle Last Messages --------------- K-01 Serf collects debris. EM Pulse Gun destroyed. Acquired EM Pulse Gun. K-01 Serf collects debris. S-10 Pest destroyed. K-01 Serf collects debris. G-34 Mercenary IFF system glitched. U-05 Engineer lays Concrete. K-01 Serf collects debris. U-05 Engineer lays Concrete. Heat Sink fried. G-34 Mercenary destroyed. R-06 Scavenger collects Hover Unit. K-01 Serf collects debris. EM Pulse Gun destroyed. U-05 Engineer lays Concrete. Acquired 50 matter. R-06 Scavenger collects Hacking Suite. K-01 Serf collects debris. Acquired Corrupted Ion Engine. Map ----- +----------------------------------------------------+ | ??????????????????????????????+ !!! #??????? | | ??????????????????????????????# !!! #??????? | | ??????????????????????????????# !!! ! #??????? | | ?????????????????????????????## #??????? | | ???????????????############### ##?????? | | ?????????????? ???? | | ?????????????? ??? | | ??????????????????####### ??? | | ???????????????????????## %= ###+####### ??? | | ???????????????????????## %## #?????????????? | | ???????????????????????##* ## #?????????????? | | ???????????????????????## ## +?????????????? | | ???????????????????????##% ########?????????????? | | ???????????????????????# #???????????????????? | | ???????????????????????# [ #???????????????????? | | ?????????????????????? + #???????????????????? | | ?????????????????????" # #???????????????????? | | ????????????????????"" # #???????????????????? | | ???????# ?????????? ?## ##???????????????????? | | ???????# ???????? ??#%r #????????????????????? | | ???????# ????????###???# k#????????????????????? | | ???????# ######????????# #????????????????????? | | ???????# #???????## ##????????! "????????? | | ???????# < ######### #####" "#???????? | | ???????? r r [ ??????? | | ?????????## % g @ < ??????? | | ?????????##u= """ s r ??????? | | ?????????## %= """ # k ##### #???????? | | ?????????#" * """ ###+###?????#######???????? | | ??????????# #? ????????????????????? | | ??????????# #?= #??????????????????? | | ??????????# ! """ # #??????????????????? | | ??????????# [! """ # #??????????????????? | | ??????????# [! """ # = #??????????????????? | | ???????? *%= # #??????????????????? | | ?????# # #??????????????????? | | ?????# =%[""" """ # = #??????????????????? | | ?????# """ """ # * #??????????????????? | | ?????# """ """ # #??????????????????? | | ?????# # ???????????????????? | | ?????# + ????????????????????? | | ?????+ #####?##########?????????????????????????? | | ?????# ?????????????????????????????????????????? | | ?????# ??????????????????????????????????????????? | | ?????????????????????????????????????????????????? | | ?????????????????????????????????????????????????? | | ?????????????????????????????????????????????????? | | ?????????????????????????????????????????????????? | | ?????????????????????????????????????????????????? | | ?????????????????????????????????????????????????? | +----------------------------------------------------+ Best States ------------- Heat Dissipation 25 Energy Generation 10 Energy Capacity 125 Matter Stores 300 Matter Capacity 300 Sight Range 16 Terrain Scan Density 10 Evasion (%) 50 Item Schematics ----------------- None Robot Schematics ------------------ None Fabricated ------------ Nothing Alien Tech Used ----------------- None Achievements -------------- None Challenges ------------ None Game ------ Seed CobblerFlightDerivative Manual? 0 Play Time 00:05:24 Cumulative 2.7 hours Start 2024.07.30 @ 20:31:52 End 2024.07.30 @ 20:36:41 Sessions 1 Manual Loads 0 Difficulty Rogue Special Mode None Game No. 6 Rogue 6 Adventurer 0 Explorer 0 Win Type - Total 0 Types 0/0/0/0/0/0/0/0/0 Lore% 6 Gallery% 7 Achievement% 6 Wizard Run 0 Options --------- Layout 1 ASCII 0 Keyboard 0 Movement Mouse Keybinds 0 Fullscreen 1 Font 28/SmallcapsGlow Map View 50x43 Zoom Use 0% Tactical HUD 0 Map Filters NONE Filters NONE Steam 0 RUN: b5016e47-0607-426a-b1eb-c0a7671f57ac